bitfinex/quotes_ETHUSD_20251125
["timestamp","ask_amount","ask_price","bid_price","bid_amount"]
[1764065892353,0.4996,2885.8,2885.5,0.001]
[1764065892551,0.219,2885.9,2885.5,0.001]
[1764065892914,0.4996,2886.1,2885.5,0.001]
[1764065893128,0.219,2886.0,2885.5,0.5588]
[1764065893345,10.39537059,2885.9,2885.5,0.101]
[1764065893537,0.0133509,2885.8,2885.5,0.101]
[1764065893738,0.4514,2885.6,2885.5,0.001]
[1764065894247,1.17,2885.6,2885.5,0.001]
[1764065895437,4.63548378,2885.6,2885.5,0.001]
[1764065895641,4.96036592,2885.6,2885.5,0.001]
[1764065895921,4.46076592,2885.6,2885.5,0.001]
[1764065896317,4.96036592,2885.6,2885.5,0.001]
[1764065897023,4.96236592,2885.6,2885.5,0.001]
[1764065897218,4.74336592,2885.6,2885.5,0.001]
[1764065897525,3.79236592,2885.6,2885.5,0.4617]
[1764065897836,4.01136592,2885.6,2885.5,0.4617]
[1764065898031,4.01136592,2885.6,2885.5,0.9195]
[1764065898242,4.01136592,2885.6,2885.5,0.5617]
[1764065898820,4.01136592,2885.6,2885.5,0.101]
[1764065899646,4.01136592,2885.6,2885.5,0.5617]
[1764065900154,4.01136592,2885.6,2885.5,0.101]
[1764065900351,4.47316592,2885.6,2885.5,0.101]
[1764065900552,4.47316592,2885.6,2885.5,0.001]
[1764065901890,4.95576592,2885.6,2885.5,0.001]
[1764065902380,4.25416592,2885.6,2885.5,0.001]
[1764065902583,4.01136592,2885.6,2885.5,0.5936]
[1764065902762,4.01136592,2885.6,2885.5,1.0724]
[1764065903582,4.50086592,2885.6,2885.5,0.001]
[1764065903762,4.97266592,2885.6,2885.5,0.001]
[1764065904164,4.50006592,2885.6,2885.5,0.001]
[1764065904482,4.01056592,2885.6,2885.5,0.4936]
[1764065904686,4.01056592,2885.6,2885.5,0.5936]
[1764065907586,4.48916592,2885.6,2885.5,0.001]
[1764065907790,4.98511682,2885.6,2885.5,0.001]
[1764065908394,5.37726992,2885.6,2885.5,0.001]
[1764065908766,9.42760467,2885.6,2885.5,0.001]
[1764065908981,9.41425377,2885.6,2885.5,0.001]
[1764065909316,1.07523247,2885.6,2885.2,0.001]
[1764065909479,3.46748378,2885.6,2885.5,0.4926]
[1764065909668,0.3267145,2885.6,2885.5,1.0714]
[1764065909866,0.002,2885.6,2885.5,1.0714]
[1764065913610,0.32671038,2885.6,2885.5,0.5926]
[1764065913797,0.32671038,2885.6,2885.5,1.0714]
[1764065914169,0.32671038,2885.6,2885.5,1.0724]
[1764065915395,3.79219416,2885.6,2885.5,1.0724]
[1764065916402,4.28169416,2885.6,2885.5,0.001]
[1764065916919,4.76684506,2885.6,2885.5,0.001]
[1764065918814,4.29504506,2885.6,2885.5,0.001]
[1764065919116,3.79219416,2885.6,2885.5,0.4936]
[1764065919323,3.79219416,2885.6,2885.5,1.0724]
[1764065919819,3.79219416,2885.6,2885.5,0.5936]
[1764065920417,3.79219416,2885.6,2885.5,1.0724]
[1764065921520,3.79219416,2885.6,2885.5,0.5936]
[1764065921727,4.27079416,2885.6,2885.5,0.001]
[1764065921926,4.75339416,2885.6,2885.5,0.001]
[1764065922079,5.47898827,2885.6,2885.5,0.001]
[1764065922793,4.99638827,2885.6,2885.5,0.001]
[1764065923393,5.69798827,2885.6,2885.5,0.001]
[1764065924539,5.21538827,2885.6,2885.5,0.001]
[1764065924707,4.99638827,2885.6,2885.5,0.001]
[1764065924912,5.21538827,2885.6,2885.5,0.001]
[1764065925616,4.73678827,2885.6,2885.5,0.5936]
[1764065926429,4.73678827,2885.6,2885.5,0.4936]
[1764065926628,4.51778827,2885.6,2885.5,0.4936]
[1764065926821,4.73678827,2885.6,2885.5,0.4936]
[1764065927225,5.21538827,2885.6,2885.5,0.001]
[1764065928106,5.21458827,2885.6,2885.5,0.001]
[1764065929001,4.99558827,2885.6,2885.5,0.001]
[1764065929204,4.73598827,2885.6,2885.5,0.001]
[1764065929405,4.73598827,2885.6,2885.5,0.4936]
[1764065929840,4.73598827,2885.6,2885.5,1.0724]
[1764065930343,4.73598827,2885.6,2885.5,0.5936]
[1764065930836,5.23488827,2885.6,2885.5,0.101]
[1764065931348,4.73598827,2885.6,2885.5,0.5922]
[1764065932467,4.73598827,2885.6,2885.5,1.0759]
[1764065932669,4.73598827,2885.6,2885.5,0.5922]
[1764065934070,4.51698827,2885.6,2885.5,0.5922]
[1764065934270,4.73598827,2885.6,2885.5,0.5922]
[1764065935471,4.73598827,2885.6,2885.5,0.101]
[1764065935472,5.23488827,2885.6,2885.5,0.101]
[1764065936072,4.73598827,2885.6,2885.5,0.5922]
[1764065937069,4.41127789,2885.6,2885.5,0.5922]
[1764065937258,4.73617026,2885.6,2885.5,0.5922]
[1764065937453,5.20837026,2885.6,2885.5,0.101]
[1764065937875,4.73617026,2885.6,2885.5,0.5661]
[1764065939715,8.79248141,2885.6,2885.5,0.001]
[1764065939899,8.77913051,2885.6,2885.5,0.001]
[1764065940483,5.20837026,2885.6,2885.5,0.001]
[1764065942135,5.66107026,2885.6,2885.5,0.001]
[1764065942286,9.54154206,2885.6,2885.5,0.001]
[1764065942485,6.41013091,2885.6,2885.5,0.001]
[1764065944503,5.48523091,2885.6,2885.5,0.4661]
[1764065946199,5.95743091,2885.6,2885.5,0.001]
[1764065946428,5.97078181,2885.6,2885.5,0.001]
[1764065947414,5.95743091,2885.6,2885.5,0.001]
[1764065948833,5.48523091,2885.6,2885.5,0.4661]
[1764065949613,4.01057615,2885.6,2885.5,0.4661]
[1764065949818,4.48277615,2885.6,2885.5,0.001]
[1764065950139,4.93547615,2885.6,2885.5,0.001]
[1764065950439,4.01057615,2885.6,2885.5,0.001]
[1764065950629,4.01057615,2885.6,2885.5,0.4661]
[1764065950818,4.01057615,2885.6,2885.5,0.001]
[1764065951023,4.48277615,2885.6,2885.5,0.001]
[1764065951748,5.95721938,2885.6,2885.5,0.001]
[1764065951931,5.01262527,2885.6,2885.5,0.001]
[1764065952130,4.26297615,2885.6,2885.5,0.001]
[1764065952333,3.79077615,2885.6,2885.5,0.001]
[1764065952839,3.79077615,2885.6,2885.5,0.4661]
[1764065953142,3.79077615,2885.6,2885.5,1.0527]
[1764065953654,0.32529237,2885.6,2885.5,1.0527]
[1764065954061,0.32529237,2885.6,2885.5,0.4661]
[1764065954062,3.79077615,2885.6,2885.5,0.4661]
[1764065954239,4.26297615,2885.6,2885.5,0.101]
[1764065954547,4.26297615,2885.6,2885.5,0.001]
[1764065954548,10.24199286,2885.6,2885.5,0.001]
[1764065954711,9.30829786,2885.6,2885.5,0.001]
[1764065956350,13.76579227,2885.6,2885.5,0.001]
[1764065956519,13.4096849,2885.6,2885.5,0.001]
[1764065958262,0.4679,2885.0,2882.9,0.1819]
[1764065958446,3.11829541,2884.4,2883.7,0.1]
[1764065958650,0.54489237,2884.9,2883.4,0.1]
[1764065958651,0.32489237,2884.3,2883.4,0.1]
[1764065958966,0.045,2884.9,2884.1,0.1]
[1764065958967,0.32489237,2884.2,2884.1,0.1]
[1764065959425,0.32489237,2884.6,2884.1,1.2445]
[1764065959626,0.32489237,2884.5,2884.1,1.2445]
[1764065959939,3.46704573,2884.3,2884.1,1.2445]
[1764065960256,0.32489237,2884.2,2884.1,1.2445]
[1764065960461,3.46704573,2884.3,2884.2,1.0828]
[1764065960665,3.79141782,2884.3,2884.2,1.0828]
[1764065960959,3.4666843,2884.7,2884.6,0.1]
[1764065961154,3.79100713,2884.7,2884.6,0.1]
[1764065961329,3.4666843,2884.7,2884.6,0.5833]
[1764065962024,10.3986135,2885.0,2884.7,0.1]
[1764065962258,10.3986135,2885.0,2884.6,0.4833]
[1764065962259,3.44259196,2884.9,2884.6,0.5833]
[1764065962453,0.32429655,2884.8,2884.6,0.5833]
[1764065962929,0.32429655,2884.8,2884.6,0.1]
[1764065964090,3.46656498,2884.7,2884.6,0.1]
[1764065964272,4.27506153,2884.7,2884.6,0.1]
[1764065965775,11.58551603,2884.7,2884.5,0.001]
[1764065965978,1.08599066,2884.6,2884.5,0.001]
[1764065966288,5.00877581,2884.6,2884.5,0.001]
[1764065967586,5.41427981,2884.6,2884.5,0.001]
[1764065967890,5.00877581,2884.6,2884.5,0.001]
[1764065968068,4.51657581,2884.6,2884.5,0.4843]
[1764065969673,3.7909817,2884.6,2884.5,0.4843]
[1764065970549,3.7909817,2884.6,2884.5,0.5843]
[1764065970975,3.7909817,2884.6,2884.5,1.0838]
[1764065971384,3.7909817,2884.6,2884.5,0.5843]
[1764065971588,3.46644481,2884.8,2884.5,1.0838]
[1764065971756,3.46644481,2884.8,2884.7,0.4833]
[1764065972081,3.46644481,2884.8,2884.7,0.5833]
[1764065972285,6.93216872,2885.1,2884.7,0.9828]
[1764065972484,0.32405259,2885.0,2884.9,0.1]
[1764065972655,4.63739301,2885.0,2884.5,0.001]
[1764065972864,0.0361,2884.6,2884.5,0.001]
[1764065973378,0.0494509,2884.6,2884.5,0.001]
[1764065973695,0.0361,2884.6,2884.5,0.001]
[1764065973900,0.32405259,2884.7,2884.5,0.4843]
[1764065974103,0.32405259,2884.7,2884.6,0.4833]
[1764065974600,3.79061757,2884.7,2884.6,0.4833]
[1764065974801,3.79061757,2884.7,2884.6,0.5833]
[1764065975876,4.27481757,2884.7,2884.5,0.001]
[1764065976081,0.32405259,2884.6,2884.5,0.001]
[1764065976282,0.32325259,2884.6,2884.5,0.001]
[1764065976668,3.78993774,2884.6,2884.5,0.001]
[1764065977403,4.28748864,2884.6,2884.5,0.001]
[1764065977598,4.27413774,2884.6,2884.5,0.001]
[1764065977787,3.78993774,2884.6,2884.5,0.4843]
[1764065981014,3.79193774,2884.6,2884.5,0.4843]
[1764065982417,3.79193774,2884.6,2884.5,0.001]
[1764065982595,4.27613774,2884.6,2884.5,0.001]
[1764065984617,3.79193774,2884.6,2884.5,0.001]
[1764065984817,3.80528864,2884.6,2884.5,0.001]
[1764065985215,4.28948864,2884.6,2884.5,0.001]
[1764065986485,3.79193774,2884.6,2884.5,0.4843]
[1764065986685,4.27613774,2884.6,2884.5,0.001]
[1764065987206,3.95288515,2884.6,2884.5,0.001]
[1764065987514,4.40898515,2884.6,2884.5,0.001]
[1764065987714,4.42233605,2884.6,2884.5,0.001]
[1764065987917,3.46868515,2884.6,2884.5,0.4843]
[1764065988426,4.27786175,2884.6,2884.5,0.001]
[1764065988593,4.29121265,2884.6,2884.5,0.001]
[1764065989613,7.86560806,2884.6,2884.5,0.001]
[1764065989821,9.32667251,2884.6,2884.5,0.001]
[1764065994133,5.7522771,2884.6,2884.5,0.001]
[1764065994308,5.4880771,2884.6,2884.5,0.001]
[1764065994638,5.4880771,2884.6,2884.5,0.4707]
[1764065994802,5.9532771,2884.6,2884.5,0.001]
[1764065994999,6.4113771,2884.6,2884.5,0.001]
[1764065996156,5.68578299,2884.6,2884.5,0.001]
[1764065996338,4.47886175,2884.6,2884.5,0.001]
[1764065996651,4.01366175,2884.6,2884.5,0.001]
[1764065996829,4.01366175,2884.6,2884.5,0.4707]
[1764065997748,4.01366175,2884.6,2884.5,1.0214]
[1764065997749,3.79366175,2884.6,2884.5,1.0214]
[1764065998560,3.79366175,2884.6,2884.5,0.4707]
[1764066000155,3.79286175,2884.6,2884.5,0.4707]
[1764066000453,4.26906175,2884.6,2884.5,0.001]
[1764066000650,3.79286175,2884.6,2884.5,0.001]
[1764066000952,3.79286175,2884.6,2884.5,0.5002]
[1764066002655,3.79286175,2884.6,2884.5,1.0509]
[1764066003847,0.3269766,2884.6,2884.5,1.0509]
[1764066004047,3.79366175,2884.6,2884.5,1.0509]
[1764066004234,0.3269766,2884.6,2884.5,1.0509]
[1764066005135,3.79366175,2884.6,2884.5,1.0509]
[1764066005537,0.3269766,2884.6,2884.5,1.0509]
[1764066007474,3.79366175,2884.6,2884.5,1.0509]
[1764066007874,0.3269766,2884.6,2884.5,1.0509]
[1764066008078,3.79366175,2884.6,2884.5,1.0509]
[1764066008265,0.3269766,2884.6,2884.5,1.0509]
[1764066009274,3.79366175,2884.6,2884.5,1.0509]
[1764066009673,0.3269766,2884.6,2884.5,1.0509]
[1764066010340,3.79366175,2884.6,2884.5,1.0509]
[1764066013066,0.3269766,2884.6,2884.5,1.0509]
[1764066013451,0.3269766,2884.6,2884.5,0.9509]
[1764066013653,0.3269766,2884.6,2884.5,1.0509]
[1764066016272,0.002,2884.6,2884.5,1.0509]
[1764066016978,0.3269766,2884.6,2884.5,1.0509]
[1764066018269,0.002,2884.6,2884.5,1.0509]
[1764066020765,0.002,2884.6,2884.5,0.6002]
[1764066020961,0.002,2884.6,2884.5,1.0531]
[1764066021887,0.002,2884.6,2884.5,0.001]
[1764066021888,0.9234,2884.6,2884.5,0.001]
[1764066022083,1.24805652,2884.6,2884.5,0.001]
[1764066022256,0.78705652,2884.6,2884.5,0.001]
[1764066022582,1.24805652,2884.6,2884.5,0.001]
[1764066023277,4.71474167,2884.6,2884.5,0.001]
[1764066023479,4.25374167,2884.6,2884.5,0.001]
[1764066023657,3.79334167,2884.6,2884.5,0.001]
[1764066023984,0.32665652,2884.6,2884.5,0.913]
[1764066024157,0.002,2884.6,2884.5,1.013]
[1764066024359,0.32585652,2884.6,2884.5,1.013]
[1764066024983,0.0012,2884.6,2884.5,1.013]
[1764066025186,4.25294167,2884.6,2884.5,0.001]
[1764066025489,4.71394167,2884.6,2884.5,0.001]
[1764066027787,6.1886791,2884.6,2884.5,0.001]
[1764066028160,6.5941831,2884.6,2884.5,0.001]
[1764066031090,5.7276791,2884.6,2884.5,0.001]
[1764066032067,3.79254167,2884.6,2884.5,0.4601]
[1764066032395,4.71394167,2884.6,2884.5,0.001]
[1764066037114,4.71411185,2884.6,2884.5,0.001]
[1764066037409,4.25311185,2884.6,2884.5,0.001]
[1764066040020,3.79271185,2884.6,2884.5,0.001]
[1764066041919,4.25311185,2884.6,2884.5,0.001]
[1764066042515,3.79271185,2884.6,2884.5,0.4601]
[1764066043518,3.79267015,2884.6,2884.5,0.4601]
[1764066045716,4.25307015,2884.6,2884.5,0.001]
[1764066046117,4.71407015,2884.6,2884.5,0.001]
[1764066046314,4.25307015,2884.6,2884.5,0.001]
[1764066048124,4.25227015,2884.6,2884.5,0.001]
[1764066049226,3.79187015,2884.6,2884.5,0.4601]
[1764066050297,3.79187015,2884.6,2884.5,0.5601]
[1764066052605,4.25167015,2884.6,2884.5,0.101]
[1764066056633,4.2520901,2884.6,2884.5,0.101]
[1764066058833,3.7922901,2884.6,2884.5,0.599]
[1764066059131,0.32560495,2884.6,2884.5,1.0635]
[1764066060234,4.262441,2884.6,2884.5,0.001]
[1764066060533,4.761441,2884.6,2884.5,0.001]
[1764066061528,4.7480901,2884.6,2884.5,0.001]
[1764066061831,4.761441,2884.6,2884.5,0.001]
[1764066062037,6.64194045,2884.6,2884.5,0.001]
[1764066062404,7.56351719,2884.6,2884.5,0.001]
[1764066062742,6.62858955,2884.6,2884.5,0.001]
[1764066067848,6.12958955,2884.6,2884.5,0.001]
[1764066068054,6.64194045,2884.6,2884.5,0.001]
[1764066068272,5.26728555,2884.6,2884.5,0.001]
[1764066068420,3.7922901,2884.6,2884.5,0.499]
[1764066068624,3.7922901,2884.6,2884.5,0.599]
[1764066069248,3.7922901,2884.6,2884.5,0.101]
[1764066069424,4.2716901,2884.6,2884.5,0.101]
[1764066069625,3.7922901,2884.6,2884.5,0.599]
[1764066071172,4.2716901,2884.6,2884.5,0.001]
[1764066071367,4.285041,2884.6,2884.5,0.001]
[1764066071569,3.7922901,2884.6,2884.5,0.499]
[1764066072256,3.7914901,2884.6,2884.5,0.499]
[1764066072460,4.2709901,2884.6,2884.5,0.001]
[1764066073170,4.760941,2884.6,2884.5,0.001]
[1764066073370,4.7475901,2884.6,2884.5,0.001]
[1764066073568,9.57441459,2884.6,2884.5,0.001]
[1764066073769,9.56106369,2884.6,2884.5,0.001]
[1764066078663,9.56106369,2884.6,2883.7,0.4645]
[1764066078664,0.0048,2884.4,2883.8,0.1]
[1764066078867,0.4554,2884.3,2883.8,0.1]
[1764066079273,0.9549,2884.3,2883.8,0.1]
[1764066079804,6.93385106,2884.4,2884.2,0.6835]
[1764066079967,6.93385106,2884.4,2884.2,0.1855]
[1764066080304,4.19251964,2884.4,2884.3,0.598]
[1764066080816,4.19251964,2884.4,2884.3,1.0625]
[1764066081014,3.46692553,2884.4,2884.3,1.0625]
[1764066081376,3.46692553,2884.4,2884.3,0.598]
[1764066082411,3.46681545,2884.5,2884.3,0.598]
[1764066082412,7.65896441,2884.6,2884.3,0.1]
[1764066082562,7.65896441,2884.6,2884.3,0.598]
[1764066083189,7.65896441,2884.6,2884.3,1.0625]
[1764066083497,3.46668515,2884.6,2884.5,0.498]
[1764066083696,3.46668515,2884.6,2884.5,0.598]
[1764066084265,3.79158275,2884.6,2884.5,0.598]
[1764066084763,3.79158275,2884.6,2884.5,0.498]
[1764066086916,3.79156962,2884.6,2884.5,0.498]
[1764066087115,0.32488447,2884.6,2884.5,1.0625]
[1764066088910,3.79156962,2884.6,2884.5,1.0625]
[1764066090090,3.79156962,2884.6,2884.5,0.498]
[1764066090491,7.72535477,2884.6,2884.1,0.6473]
[1764066090691,0.32488447,2884.5,2884.3,0.319]
[1764066090894,0.33823537,2884.4,2884.2,0.1]
[1764066091208,0.32488447,2884.3,2884.2,0.1]
[1764066091411,6.9333703,2884.6,2884.1,0.1828]
[1764066091611,0.32471123,2884.5,2884.4,0.1]
[1764066092063,0.32471123,2884.5,2884.4,1.0625]
[1764066092807,3.79151656,2884.5,2884.4,1.0625]
[1764066093105,0.32471123,2884.5,2884.4,1.0625]
[1764066093305,0.002,2884.7,2884.4,0.9625]
[1764066093482,3.79323039,2884.7,2884.6,0.598]
[1764066094787,8.21921012,2884.7,2884.3,0.219]
[1764066094995,0.34280156,2884.6,2884.3,0.319]
[1764066095169,0.32465066,2884.5,2884.4,0.1]
[1764066095570,0.32465066,2884.5,2884.4,1.0625]
[1764066095888,0.32465066,2884.6,2884.4,0.9625]
[1764066096078,0.32465066,2884.5,2884.4,1.0625]
[1764066096278,6.93515946,2884.7,2884.4,0.9625]
[1764066096484,3.46857973,2884.7,2884.6,0.598]
[1764066096703,0.002,2884.7,2884.6,0.598]
[1764066098178,0.002,2884.7,2884.6,0.9625]
[1764066098395,0.002,2884.7,2884.6,1.0625]
[1764066101889,0.002,2884.7,2884.6,4.52918515]
[1764066106393,0.002,2884.7,2884.6,1.0625]
[1764066106909,0.002,2884.7,2884.6,4.52918515]
[1764066108134,0.002,2884.7,2884.6,1.0625]
[1764066108500,0.002,2884.7,2884.6,1.2815]
[1764066109021,0.002,2884.7,2884.2,0.13887707]
[1764066109022,0.4691,2884.7,2884.2,0.13887707]
[1764066109206,0.4942,2884.7,2884.6,0.1]
[1764066109731,0.9615,2884.7,2884.6,0.1]
[1764066110132,4.42806498,2884.7,2884.6,0.1]
[1764066110718,0.002,2884.7,2884.6,0.5893]
[1764066114624,0.002,2884.7,2884.6,1.0859]
[1764066116141,0.002,2884.7,2884.6,4.55258515]
[1764066117346,0.002,2884.7,2884.6,1.0859]
[1764066119544,0.002,2884.7,2884.6,4.55258515]
[1764066120120,0.0012,2884.7,2884.6,4.55258515]
[1764066120518,0.0012,2884.7,2884.6,4.587252]
[1764066120735,0.0012,2884.7,2884.6,4.55258515]
[1764066125633,0.0012,2884.7,2884.6,4.77158515]
[1764066126258,0.0012,2884.7,2884.6,5.90268326]
[1764066128162,0.0012,2884.7,2884.6,5.93735011]
[1764066128328,0.0012,2884.7,2884.6,5.90268326]
[1764066128529,0.0012,2884.7,2884.6,5.93735011]
[1764066129061,0.002,2884.9,2884.8,0.1]
[1764066129367,0.002,2884.9,2884.8,3.717157]
[1764066129564,0.002,2884.9,2884.8,4.201757]
[1764066129729,0.002,2884.9,2884.8,4.92735111]
[1764066129931,0.002,2884.9,2884.8,8.53263684]
[1764066130247,0.002,2884.9,2884.8,8.4979724]
[1764066130977,0.002,2885.0,2884.9,1.13109811]
[1764066131155,0.002,2885.0,2884.9,2.21266135]
[1764066132033,0.002,2885.0,2884.9,5.678986]
[1764066132672,0.002,2885.0,2884.9,8.76042069]
[1764066133788,0.002,2885.0,2884.9,8.89925197]
[1764066137178,0.002,2885.2,2885.1,0.1]
[1764066137379,0.0004,2885.6,2885.2,1.23109811]
[1764066137580,0.002,2885.9,2885.8,0.1]
[1764066137882,0.002,2885.9,2885.8,5.02849604]
[1764066138070,0.002,2886.5,2886.1,3.96900193]
[1764066138398,0.002,2886.5,2886.1,8.13228533]
[1764066138691,0.002,2886.5,2886.1,8.82380488]
[1764066138859,0.002,2886.5,2886.1,8.9625721]
[1764066139191,0.002,2886.5,2886.4,0.505504]
[1764066139425,0.002,2887.1,2886.5,0.405504]
[1764066139571,0.002,2887.1,2886.7,4.08390193]
[1764066139956,0.002,2887.1,2886.7,4.56300193]
[1764066140163,0.002,2887.1,2886.8,0.405504]
[1764066140361,0.002,2887.1,2887.0,4.83479604]
[1764066140762,0.002,2887.1,2887.0,5.31389604]
[1764066141098,0.4565,2888.4,2887.1,1.13109811]
[1764066141304,0.0133509,2888.3,2888.0,0.1]
[1764066141487,0.4725,2888.1,2888.0,0.1]
[1764066141969,0.4565,2888.7,2888.0,1.1857]
[1764066142169,0.4565,2888.7,2888.6,0.1]
[1764066142367,0.4565,2888.7,2888.6,0.319]
[1764066142573,0.929,2888.7,2888.6,0.319]
[1764066142874,0.929,2888.7,2888.6,0.1]
[1764066143212,0.929,2888.7,2888.6,0.319]
[1764066144110,0.1984,2889.0,2888.6,0.319]
[1764066144111,0.1984,2889.0,2888.9,0.1]
[1764066144291,1.1266,2889.0,2888.9,0.1]
[1764066144967,1.1266,2889.0,2888.9,3.56152514]
[1764066145169,0.1984,2889.2,2889.1,0.1]
[1764066145368,0.1984,2889.2,2889.1,0.319]
[1764066145369,0.6549,2889.2,2889.1,0.319]
[1764066145681,1.1274,2889.2,2889.1,0.319]
[1764066145859,0.6709,2889.2,2889.1,0.319]
[1764066146211,0.4725,2889.2,2889.1,0.319]
[1764066146510,0.929,2889.2,2889.1,0.319]
[1764066147104,0.929,2889.2,2889.1,0.31309977]
[1764066147264,0.929,2889.2,2889.1,0.31306977]
[1764066148505,0.929,2889.2,2889.1,0.09406977]
[1764066148661,0.929,2889.2,2889.1,0.31306977]
[1764066149517,0.929,2889.2,2889.1,0.09406977]
[1764066149667,0.929,2889.2,2889.1,0.31306977]
[1764066149884,4.39016572,2889.2,2889.1,0.219]
[1764066150189,4.39016572,2889.2,2889.0,0.31306977]
[1764066150503,0.5001,2889.1,2889.0,0.09406977]
[1764066150704,3.96138552,2889.1,2889.0,0.31306977]
[1764066150862,3.96138552,2889.1,2888.7,0.09406977]
[1764066151067,0.4725,2888.4,2888.3,0.09406977]
[1764066151305,0.4725,2888.4,2888.3,0.31306977]
[1764066151514,0.1934,2888.9,2888.3,0.7066]
[1764066151806,0.1934,2888.9,2888.8,0.09406977]
[1764066152025,0.4565,2889.1,2889.0,0.09406977]
[1764066152396,0.929,2889.1,2889.0,0.09406977]
[1764066152709,0.4725,2889.1,2889.0,0.09406977]
[1764066153004,0.929,2889.1,2889.0,0.09406977]
[1764066154212,0.4725,2889.1,2889.0,0.09406977]
[1764066154408,0.4725,2889.1,2889.0,0.31306977]
[1764066154769,0.002,2889.4,2889.3,0.09406977]
[1764066155078,0.4585,2889.4,2889.3,0.09406977]
[1764066155280,0.931,2889.4,2889.3,0.09406977]
[1764066156698,0.4745,2889.4,2889.3,0.09406977]
[1764066157373,0.931,2889.4,2889.3,0.09406977]
[1764066157865,4.39192614,2889.4,2889.3,0.09406977]
[1764066158076,7.86620318,2889.4,2889.0,0.31306977]
[1764066158382,0.4565,2889.3,2889.0,0.09406977]
[1764066158590,0.0444,2889.1,2889.0,0.09406977]
[1764066158901,3.50568552,2889.1,2889.0,0.09406977]
[1764066159097,3.96218552,2889.1,2889.0,0.09406977]
[1764066159413,0.5009,2889.1,2889.0,0.09406977]
[1764066159712,3.96218552,2889.1,2889.0,0.09406977]
[1764066160874,3.96218552,2889.1,2887.9,1.17067375]
[1764066160875,7.42347104,2889.1,2888.7,0.09406977]
[1764066161111,0.4565,2889.0,2888.7,0.09406977]
[1764066161433,0.6616,2888.8,2888.7,0.09406977]
[1764066161881,1.1181,2888.8,2888.7,0.09406977]
[1764066162480,1.1181,2888.8,2887.9,3.83]
[1764066162712,1.1181,2888.8,2888.4,0.09406977]
[1764066162713,0.0486,2888.6,2888.4,0.09406977]
[1764066162916,0.464,2888.5,2888.4,0.09406977]
[1764066163092,0.464,2888.5,2888.4,0.31306977]
[1764066163093,0.9205,2888.5,2888.4,0.31306977]
[1764066164930,0.464,2888.5,2888.4,0.31306977]
[1764066165082,4.11160216,2888.8,2888.4,0.219]
[1764066165392,3.65510216,2888.8,2888.7,0.09406977]
[1764066165812,4.58410216,2888.8,2888.7,0.09406977]
[1764066166182,4.90659566,2888.8,2888.7,0.09406977]
[1764066168114,4.90579566,2888.8,2888.7,0.09406977]
[1764066169316,0.3224935,2888.8,2888.7,0.58166977]
[1764066169535,0.7949935,2888.8,2888.7,0.09406977]
[1764066170800,0.3224935,2888.8,2888.7,0.57906977]
[1764066171004,0.3224935,2888.8,2888.7,1.06906977]
[1764066171206,0.3224935,2888.8,2888.7,4.53083457]
[1764066173999,0.002,2889.4,2889.3,0.09406977]
[1764066174232,0.32618713,2889.4,2889.3,0.09406977]
[1764066174532,0.80148713,2889.4,2889.3,0.09406977]
[1764066174733,1.29348713,2889.4,2889.3,0.09406977]
[1764066175024,4.75441327,2889.4,2889.3,0.09406977]
[1764066176316,1.29348713,2889.4,2889.3,0.09406977]
[1764066177342,0.32618713,2889.4,2889.3,0.4783]
[1764066177494,0.002,2889.4,2889.3,5.2377098]
[1764066178912,0.002,2889.4,2889.3,5.4567098]
[1764066181029,0.002,2889.4,2889.3,4.66494003]
[1764066181327,0.002,2889.4,2889.3,5.4567098]
[1764066181529,0.002,2889.4,2889.3,5.2377098]
[1764066181735,0.002,2889.4,2889.3,4.9780098]
[1764066182027,0.002,2889.4,2889.3,5.4567098]
[1764066182935,0.002,2889.4,2889.3,9.2867098]
[1764066184049,0.9512,2889.4,2889.3,3.92406977]
[1764066184547,0.9512,2889.4,2888.8,3.46153462]
[1764066184548,4.41212614,2889.4,2889.2,0.09406977]
[1764066184746,0.482,2889.3,2889.2,0.09406977]
[1764066184921,0.9492,2889.3,2889.2,0.09406977]
[1764066186215,0.9492,2889.3,2888.9,0.31306977]
[1764066186444,0.482,2889.2,2888.9,0.219]
[1764066186622,0.482,2889.2,2889.1,0.09406977]
[1764066187027,0.9492,2889.2,2889.1,0.09406977]
[1764066188722,0.4672,2889.2,2889.1,0.09406977]
[1764066189645,0.002,2889.4,2889.3,0.09406977]
[1764066189836,0.002,2889.4,2889.3,0.31306977]
[1764066190048,0.4692,2889.4,2889.3,0.31306977]
[1764066191156,0.002,2889.4,2889.3,0.31306977]
[1764066191453,0.4692,2889.4,2889.3,0.31306977]
[1764066191752,0.9512,2889.4,2889.3,0.09406977]
[1764066191934,0.9512,2889.4,2889.2,0.219]
[1764066192251,0.0012,2889.4,2889.3,0.09406977]
[1764066192660,0.9504,2889.4,2889.3,0.09406977]
[1764066192959,0.0012,2889.4,2889.3,0.09406977]
[1764066193124,0.4684,2889.4,2889.3,0.09406977]
[1764066193325,0.0012,2889.4,2889.3,0.57236977]
[1764066193553,0.4684,2889.4,2889.3,0.09406977]
[1764066194231,0.4684,2889.4,2889.3,0.31306977]
[1764066194456,0.4684,2889.4,2889.3,0.09406977]
[1764066194622,0.4684,2889.4,2889.3,0.31306977]
[1764066195719,0.4684,2889.4,2889.3,3.77411569]
[1764066195926,0.0012,2889.4,2889.3,4.73111569]
[1764066197151,0.4684,2889.4,2889.3,0.31306977]
[1764066197651,0.0012,2889.4,2889.3,3.77411569]
[1764066198035,0.4684,2889.4,2889.3,3.77411569]
[1764066198353,0.4684,2889.4,2889.3,0.09406977]
[1764066198568,0.4684,2889.4,2889.3,3.77411569]
[1764066199134,0.0012,2889.4,2889.3,4.25241569]